Workbook

Sheet Output
A1: BYGST rentabilitetsberegner vedr. energitiltag
B3: For at beregne om et energitiltag er rentabelt, benyttes en investeringskalkyle fra Økonomi-styrelsens hjemmeside, www.oes.dk, som anvendes for alle investeringer i staten. I investeringskalkylen beregnes nettonutidsværdien. Når den er positiv, er tiltaget rentabelt. Nettonutidsværdien beregnes efter formlen: | E3: Bygningsstyrelsens standarder for beregningsmæssige levetider
E4: Efterisolering af bygningsdele | F4: 40 år
E5: Vinduer samt forsatsrammer og koblede rammer | F5: 30 år
E6: Varmeanlæg, radiatorer og gulvvarme samt ventilationskanaler og armaturer inklusive isolering | F6: 30 år
B7: ▪ Nettonutidsværdien er differencen mellem initialinvesteringen og nutidsværdien af besparelserne i aktivets levetid. | E7: Varmeproducerende anlæg mv., f.eks. kedler, varmepumper, solvarmeanlæg, ventilationsaggregater | F7: 20 år
E8: Belysningsarmaturer | F8: 15 år
B9: ▪ Investeringen er initialinvesteringen i kr. (fx udgifterne til at hulmursisolere). | E9: Automatik til varme og klimaanlæg | F9: 15 år
B10: ▪ t er energitiltagets levetid i år. | E10: Fugetætningsarbejder | F10: 10 år
B11: ▪ s er stigningstakten i energipriser udover inflationen. Stigningstakten er 0,92 pct. pr. år, som er beregnet på grundlag af Energistyrelsens energiprisprognoser fra Forudsætninger for Samfundsøkonomiske Analyser(April 2011), tabel 1C, 7, 14 og 16
B13: ▪ r er diskonteringsfaktoren, som er fastsat til 4 pct. de første 35 år, derefter 3 pct. de efterfølgende 35 år af Finansministeriet. Kilde: www.fm.dk
B15: ▪ Rentabiliteten beregnes ved at udfylde investering, besparelse og levetid i nedenstående hvide felter. | F15: 0.02349108368
B16: ▪ Besparelserne i kroner skal findes udelukkende med baggrund i den årlige kWh-besparelse. Anvend de lokale energipriser til at beregne besparelser.
F17: 0.01960127325
A18: < | B18: Beskrivelse af projekt | C18: Rørisolering (50 mm) | F18: -0.001893939394
F19: 0.03605313093
B20: Stigningstakt i energipriser s | C20: 0.0092
B21: Diskonteringsrente i pct. (0-35 år) r | C21: 0.04 | F21: 0.01556776557
B22: Diskonteringsrente i pct. (36-70 år) r | C22: 0.03 | F22: 0.03095882176
B23: Diskonteringsrente i pct. (70 + år) r | C23: 0.02
B24: *Investering i kr. | C24: 100000 | F24: 0.01258970162
B25: *Årlig elbesparelse i kr. | C25: 5000 | F25: 0.01609886598
B26: *Årlig fjernvarmebesparelse i kr. | C26: 2500
B27: *Årlig besparelse af gas i kr. | C27: 0 | F27: 0.01621659405
B28: *Teknisk levetid i hele år | C28: 20 | F28: 0.0161870916
B29: Felter med * skal udfyldes (besparelserne udfyldes efter energikilde) | F29: 0.01615487015
F30: 0.01616448698
B31: Nutidsværdi af besparelse i kr. | C31: =Beregningsark!$I$7 -> 111047.2979 | F31: 0.01590735278
B32: Investering i kr. | C32: =$C$24 -> 100000 | F32: 0.01608844342
B33: Nettonutidsværdi i kr. | C33: =$C$31-$C$32 -> 11047.2979 | F33: 0.01602421625
B34: Nettonutidsværdi i pct. af investering | C34: =$C$33/$C$24 -> 0.110472979
B35: Antal år før nutidsværdi = investering | C35: =Beregningsark!$G$4 -> 17.38154132 | F35: 0.0161256719
F36: 0.01613630772
B37: Rentabelt? | C37: =IF($C$33<0,"Nej","Ja") -> Ja | F37: 0.01634415545
B38: =IF(($C$33)<0,"Investeringen er ikke rentabel med de valgte forudsætninger","Investeringen er rentabel med de valgte forudsætninger") -> Investeringen er rentabel med de valgte forudsætninger | F38: 0.016458536
B39: Bemærk: En negativ nettonutidsværdi angiver, hvor meget initialinvesteringen skal nedsættes, før tiltaget vil begynde at være rentabelt

Sheet Ark1
A1: Beregningsmæssige levetider
B2: SES
A3: Efterisolering af beskyttende bygningsdele, fx hulmursisolering | B3: 40 år
A4: Øvrige efterisoleringsarbejder for tilgængelige bygningsdele samt nye opvarmningssystemer | B4: 20 år
A5: Nye vinduer | B5: 30 år
A6: Renovering af kedelanlæg | B6: 10 år
A7: Belysningsarmaturer | B7: 20 år
A8: Automatik til natsænkning | B8: 10 år
A9: Fugetætningsarbejder | B9: 5 år
A10: Forsatsvinduer | B10: 30 år

Sheet Beregningsark
B3: t | C3: Akkumuleret nutidsværdi af besparelse | D3: Akkumuleret nettonutidsværdi af betalingsstrøm | E3: nettonutidsværdi af betalingsstrøm | F3: Investering | G3: ved nv = I er t | H3: Nettonutidsværdi ved endt levetid
B4: 1 | C4: =(Output!$C$25+Output!$C$26+Output!$C$27)*(((1+Output!$C$20)^Beregningsark!B4)/(1+Output!$C$21)^Beregningsark!B4) -> 7277.884615 | D4: =C4-F4 -> -92722.11538 | E4: =C4-F4 -> -92722.11538 | F4: =Output!$C$32 -> 100000 | G4: =INDEX($B$4:$B$104-$D$4:$D$104/$E$4:$E$104,SUM(IF($D$4:$D$104<=0,1,0))+1,1) -> 17.38154132 | H4: =Output!$C$28 -> 20 | I4: =IF(Output!C32<Output!C31,Output!$C$24,0) -> 100000 | J4: Investering
B5: 2 | C5: =C4+(Output!$C$25+Output!$C$26+Output!$C$27)*(((1+Output!$C$20)^Beregningsark!B5)/(1+Output!$C$21)^Beregningsark!B5) -> 14340.23188 | D5: =D4+(Output!$C$25+Output!$C$26+Output!$C$27)*(((1+Output!$C$20)^Beregningsark!B5)/(1+Output!$C$21)^Beregningsark!B5) -> -85659.76812 | E5: =(Output!$C$25+Output!$C$26+Output!$C$27)*(((1+Output!$C$20)^Beregningsark!B5)/(1+Output!$C$21)^Beregningsark!B5) -> 7062.347263 | F5: =Output!$C$32 -> 100000 | H5: =Output!$C$28 -> 20 | I5: =IF(Output!C32<Output!C31,Beregningsark!I7,0) -> 111047.2979 | J5: Nutidsværdi
B6: 3 | C6: =C5+(Output!$C$25+Output!$C$26+Output!$C$27)*(((1+Output!$C$20)^Beregningsark!B6)/(1+Output!$C$21)^Beregningsark!B6) -> 21193.42501 | D6: =D5+(Output!$C$25+Output!$C$26+Output!$C$27)*(((1+Output!$C$20)^Beregningsark!B6)/(1+Output!$C$21)^Beregningsark!B6) -> -78806.57499 | E6: =(Output!$C$25+Output!$C$26+Output!$C$27)*(((1+Output!$C$20)^Beregningsark!B6)/(1+Output!$C$21)^Beregningsark!B6) -> 6853.193133 | F6: =Output!$C$32 -> 100000
B7: 4 | C7: =C6+(Output!$C$25+Output!$C$26+Output!$C$27)*(((1+Output!$C$20)^Beregningsark!B7)/(1+Output!$C$21)^Beregningsark!B7) -> 27843.65819 | D7: =D6+(Output!$C$25+Output!$C$26+Output!$C$27)*(((1+Output!$C$20)^Beregningsark!B7)/(1+Output!$C$21)^Beregningsark!B7) -> -72156.34181 | E7: =(Output!$C$25+Output!$C$26+Output!$C$27)*(((1+Output!$C$20)^Beregningsark!B7)/(1+Output!$C$21)^Beregningsark!B7) -> 6650.233182 | F7: =Output!$C$32 -> 100000 | H7: NUTIDSVÆRDI | I7: =VLOOKUP($H$5,$B$4:$C$104,2,FALSE) -> 111047.2979
B8: 5 | C8: =C7+(Output!$C$25+Output!$C$26+Output!$C$27)*(((1+Output!$C$20)^Beregningsark!B8)/(1+Output!$C$21)^Beregningsark!B8) -> 34296.94216 | D8: =D7+(Output!$C$25+Output!$C$26+Output!$C$27)*(((1+Output!$C$20)^Beregningsark!B8)/(1+Output!$C$21)^Beregningsark!B8) -> -65703.05784 | E8: =(Output!$C$25+Output!$C$26+Output!$C$27)*(((1+Output!$C$20)^Beregningsark!B8)/(1+Output!$C$21)^Beregningsark!B8) -> 6453.283969 | F8: =Output!$C$32 -> 100000
B9: 6 | C9: =C8+(Output!$C$25+Output!$C$26+Output!$C$27)*(((1+Output!$C$20)^Beregningsark!B9)/(1+Output!$C$21)^Beregningsark!B9) -> 40559.10964 | D9: =D8+(Output!$C$25+Output!$C$26+Output!$C$27)*(((1+Output!$C$20)^Beregningsark!B9)/(1+Output!$C$21)^Beregningsark!B9) -> -59440.89036 | E9: =(Output!$C$25+Output!$C$26+Output!$C$27)*(((1+Output!$C$20)^Beregningsark!B9)/(1+Output!$C$21)^Beregningsark!B9) -> 6262.167482 | F9: =Output!$C$32 -> 100000
B10: 7 | C10: =C9+(Output!$C$25+Output!$C$26+Output!$C$27)*(((1+Output!$C$20)^Beregningsark!B10)/(1+Output!$C$21)^Beregningsark!B10) -> 46635.82063 | D10: =D9+(Output!$C$25+Output!$C$26+Output!$C$27)*(((1+Output!$C$20)^Beregningsark!B10)/(1+Output!$C$21)^Beregningsark!B10) -> -53364.17937 | E10: =(Output!$C$25+Output!$C$26+Output!$C$27)*(((1+Output!$C$20)^Beregningsark!B10)/(1+Output!$C$21)^Beregningsark!B10) -> 6076.710984 | F10: =Output!$C$32 -> 100000
B11: 8 | C11: =C10+(Output!$C$25+Output!$C$26+Output!$C$27)*(((1+Output!$C$20)^Beregningsark!B11)/(1+Output!$C$21)^Beregningsark!B11) -> 52532.56748 | D11: =D10+(Output!$C$25+Output!$C$26+Output!$C$27)*(((1+Output!$C$20)^Beregningsark!B11)/(1+Output!$C$21)^Beregningsark!B11) -> -47467.43252 | E11: =(Output!$C$25+Output!$C$26+Output!$C$27)*(((1+Output!$C$20)^Beregningsark!B11)/(1+Output!$C$21)^Beregningsark!B11) -> 5896.746851 | F11: =Output!$C$32 -> 100000 | N11: Dynamisk pay-back metode
B12: 9 | C12: =C11+(Output!$C$25+Output!$C$26+Output!$C$27)*(((1+Output!$C$20)^Beregningsark!B12)/(1+Output!$C$21)^Beregningsark!B12) -> 58254.6799 | D12: =D11+(Output!$C$25+Output!$C$26+Output!$C$27)*(((1+Output!$C$20)^Beregningsark!B12)/(1+Output!$C$21)^Beregningsark!B12) -> -41745.3201 | E12: =(Output!$C$25+Output!$C$26+Output!$C$27)*(((1+Output!$C$20)^Beregningsark!B12)/(1+Output!$C$21)^Beregningsark!B12) -> 5722.112425 | F12: =Output!$C$32 -> 100000
B13: 10 | C13: =C12+(Output!$C$25+Output!$C$26+Output!$C$27)*(((1+Output!$C$20)^Beregningsark!B13)/(1+Output!$C$21)^Beregningsark!B13) -> 63807.32977 | D13: =D12+(Output!$C$25+Output!$C$26+Output!$C$27)*(((1+Output!$C$20)^Beregningsark!B13)/(1+Output!$C$21)^Beregningsark!B13) -> -36192.67023 | E13: =(Output!$C$25+Output!$C$26+Output!$C$27)*(((1+Output!$C$20)^Beregningsark!B13)/(1+Output!$C$21)^Beregningsark!B13) -> 5552.649864 | F13: =Output!$C$32 -> 100000
B14: 11 | C14: =C13+(Output!$C$25+Output!$C$26+Output!$C$27)*(((1+Output!$C$20)^Beregningsark!B14)/(1+Output!$C$21)^Beregningsark!B14) -> 69195.53577 | D14: =D13+(Output!$C$25+Output!$C$26+Output!$C$27)*(((1+Output!$C$20)^Beregningsark!B14)/(1+Output!$C$21)^Beregningsark!B14) -> -30804.46423 | E14: =(Output!$C$25+Output!$C$26+Output!$C$27)*(((1+Output!$C$20)^Beregningsark!B14)/(1+Output!$C$21)^Beregningsark!B14) -> 5388.206003 | F14: =Output!$C$32 -> 100000
B15: 12 | C15: =C14+(Output!$C$25+Output!$C$26+Output!$C$27)*(((1+Output!$C$20)^Beregningsark!B15)/(1+Output!$C$21)^Beregningsark!B15) -> 74424.16798 | D15: =D14+(Output!$C$25+Output!$C$26+Output!$C$27)*(((1+Output!$C$20)^Beregningsark!B15)/(1+Output!$C$21)^Beregningsark!B15) -> -25575.83202 | E15: =(Output!$C$25+Output!$C$26+Output!$C$27)*(((1+Output!$C$20)^Beregningsark!B15)/(1+Output!$C$21)^Beregningsark!B15) -> 5228.63221 | F15: =Output!$C$32 -> 100000
B16: 13 | C16: =C15+(Output!$C$25+Output!$C$26+Output!$C$27)*(((1+Output!$C$20)^Beregningsark!B16)/(1+Output!$C$21)^Beregningsark!B16) -> 79497.95224 | D16: =D15+(Output!$C$25+Output!$C$26+Output!$C$27)*(((1+Output!$C$20)^Beregningsark!B16)/(1+Output!$C$21)^Beregningsark!B16) -> -20502.04776 | E16: =(Output!$C$25+Output!$C$26+Output!$C$27)*(((1+Output!$C$20)^Beregningsark!B16)/(1+Output!$C$21)^Beregningsark!B16) -> 5073.784256 | F16: =Output!$C$32 -> 100000
B17: 14 | C17: =C16+(Output!$C$25+Output!$C$26+Output!$C$27)*(((1+Output!$C$20)^Beregningsark!B17)/(1+Output!$C$21)^Beregningsark!B17) -> 84421.47442 | D17: =D16+(Output!$C$25+Output!$C$26+Output!$C$27)*(((1+Output!$C$20)^Beregningsark!B17)/(1+Output!$C$21)^Beregningsark!B17) -> -15578.52558 | E17: =(Output!$C$25+Output!$C$26+Output!$C$27)*(((1+Output!$C$20)^Beregningsark!B17)/(1+Output!$C$21)^Beregningsark!B17) -> 4923.522184 | F17: =Output!$C$32 -> 100000
B18: 15 | C18: =C17+(Output!$C$25+Output!$C$26+Output!$C$27)*(((1+Output!$C$20)^Beregningsark!B18)/(1+Output!$C$21)^Beregningsark!B18) -> 89199.1846 | D18: =D17+(Output!$C$25+Output!$C$26+Output!$C$27)*(((1+Output!$C$20)^Beregningsark!B18)/(1+Output!$C$21)^Beregningsark!B18) -> -10800.8154 | E18: =(Output!$C$25+Output!$C$26+Output!$C$27)*(((1+Output!$C$20)^Beregningsark!B18)/(1+Output!$C$21)^Beregningsark!B18) -> 4777.710181 | F18: =Output!$C$32 -> 100000
B19: 16 | C19: =C18+(Output!$C$25+Output!$C$26+Output!$C$27)*(((1+Output!$C$20)^Beregningsark!B19)/(1+Output!$C$21)^Beregningsark!B19) -> 93835.40106 | D19: =D18+(Output!$C$25+Output!$C$26+Output!$C$27)*(((1+Output!$C$20)^Beregningsark!B19)/(1+Output!$C$21)^Beregningsark!B19) -> -6164.598943 | E19: =(Output!$C$25+Output!$C$26+Output!$C$27)*(((1+Output!$C$20)^Beregningsark!B19)/(1+Output!$C$21)^Beregningsark!B19) -> 4636.216456 | F19: =Output!$C$32 -> 100000
B20: 17 | C20: =C19+(Output!$C$25+Output!$C$26+Output!$C$27)*(((1+Output!$C$20)^Beregningsark!B20)/(1+Output!$C$21)^Beregningsark!B20) -> 98334.31418 | D20: =D19+(Output!$C$25+Output!$C$26+Output!$C$27)*(((1+Output!$C$20)^Beregningsark!B20)/(1+Output!$C$21)^Beregningsark!B20) -> -1665.68582 | E20: =(Output!$C$25+Output!$C$26+Output!$C$27)*(((1+Output!$C$20)^Beregningsark!B20)/(1+Output!$C$21)^Beregningsark!B20) -> 4498.913123 | F20: =Output!$C$32 -> 100000
B21: 18 | C21: =C20+(Output!$C$25+Output!$C$26+Output!$C$27)*(((1+Output!$C$20)^Beregningsark!B21)/(1+Output!$C$21)^Beregningsark!B21) -> 102699.9903 | D21: =D20+(Output!$C$25+Output!$C$26+Output!$C$27)*(((1+Output!$C$20)^Beregningsark!B21)/(1+Output!$C$21)^Beregningsark!B21) -> 2699.99026 | E21: =(Output!$C$25+Output!$C$26+Output!$C$27)*(((1+Output!$C$20)^Beregningsark!B21)/(1+Output!$C$21)^Beregningsark!B21) -> 4365.67608 | F21: =Output!$C$32 -> 100000
B22: 19 | C22: =C21+(Output!$C$25+Output!$C$26+Output!$C$27)*(((1+Output!$C$20)^Beregningsark!B22)/(1+Output!$C$21)^Beregningsark!B22) -> 106936.3752 | D22: =D21+(Output!$C$25+Output!$C$26+Output!$C$27)*(((1+Output!$C$20)^Beregningsark!B22)/(1+Output!$C$21)^Beregningsark!B22) -> 6936.375164 | E22: =(Output!$C$25+Output!$C$26+Output!$C$27)*(((1+Output!$C$20)^Beregningsark!B22)/(1+Output!$C$21)^Beregningsark!B22) -> 4236.384904 | F22: =Output!$C$32 -> 100000
B23: 20 | C23: =C22+(Output!$C$25+Output!$C$26+Output!$C$27)*(((1+Output!$C$20)^Beregningsark!B23)/(1+Output!$C$21)^Beregningsark!B23) -> 111047.2979 | D23: =D22+(Output!$C$25+Output!$C$26+Output!$C$27)*(((1+Output!$C$20)^Beregningsark!B23)/(1+Output!$C$21)^Beregningsark!B23) -> 11047.2979 | E23: =(Output!$C$25+Output!$C$26+Output!$C$27)*(((1+Output!$C$20)^Beregningsark!B23)/(1+Output!$C$21)^Beregningsark!B23) -> 4110.922736 | F23: =Output!$C$32 -> 100000
B24: 21 | C24: =C23+(Output!$C$25+Output!$C$26+Output!$C$27)*(((1+Output!$C$20)^Beregningsark!B24)/(1+Output!$C$21)^Beregningsark!B24) -> 115036.4741 | D24: =D23+(Output!$C$25+Output!$C$26+Output!$C$27)*(((1+Output!$C$20)^Beregningsark!B24)/(1+Output!$C$21)^Beregningsark!B24) -> 15036.47408 | E24: =(Output!$C$25+Output!$C$26+Output!$C$27)*(((1+Output!$C$20)^Beregningsark!B24)/(1+Output!$C$21)^Beregningsark!B24) -> 3989.176178 | F24: =Output!$C$32 -> 100000
B25: 22 | C25: =C24+(Output!$C$25+Output!$C$26+Output!$C$27)*(((1+Output!$C$20)^Beregningsark!B25)/(1+Output!$C$21)^Beregningsark!B25) -> 118907.5093 | D25: =D24+(Output!$C$25+Output!$C$26+Output!$C$27)*(((1+Output!$C$20)^Beregningsark!B25)/(1+Output!$C$21)^Beregningsark!B25) -> 18907.50927 | E25: =(Output!$C$25+Output!$C$26+Output!$C$27)*(((1+Output!$C$20)^Beregningsark!B25)/(1+Output!$C$21)^Beregningsark!B25) -> 3871.035191 | F25: =Output!$C$32 -> 100000
B26: 23 | C26: =C25+(Output!$C$25+Output!$C$26+Output!$C$27)*(((1+Output!$C$20)^Beregningsark!B26)/(1+Output!$C$21)^Beregningsark!B26) -> 122663.9023 | D26: =D25+(Output!$C$25+Output!$C$26+Output!$C$27)*(((1+Output!$C$20)^Beregningsark!B26)/(1+Output!$C$21)^Beregningsark!B26) -> 22663.90226 | E26: =(Output!$C$25+Output!$C$26+Output!$C$27)*(((1+Output!$C$20)^Beregningsark!B26)/(1+Output!$C$21)^Beregningsark!B26) -> 3756.392995 | F26: =Output!$C$32 -> 100000
B27: 24 | C27: =C26+(Output!$C$25+Output!$C$26+Output!$C$27)*(((1+Output!$C$20)^Beregningsark!B27)/(1+Output!$C$21)^Beregningsark!B27) -> 126309.0482 | D27: =D26+(Output!$C$25+Output!$C$26+Output!$C$27)*(((1+Output!$C$20)^Beregningsark!B27)/(1+Output!$C$21)^Beregningsark!B27) -> 26309.04823 | E27: =(Output!$C$25+Output!$C$26+Output!$C$27)*(((1+Output!$C$20)^Beregningsark!B27)/(1+Output!$C$21)^Beregningsark!B27) -> 3645.145971 | F27: =Output!$C$32 -> 100000
B28: 25 | C28: =C27+(Output!$C$25+Output!$C$26+Output!$C$27)*(((1+Output!$C$20)^Beregningsark!B28)/(1+Output!$C$21)^Beregningsark!B28) -> 129846.2418 | D28: =D27+(Output!$C$25+Output!$C$26+Output!$C$27)*(((1+Output!$C$20)^Beregningsark!B28)/(1+Output!$C$21)^Beregningsark!B28) -> 29846.24181 | E28: =(Output!$C$25+Output!$C$26+Output!$C$27)*(((1+Output!$C$20)^Beregningsark!B28)/(1+Output!$C$21)^Beregningsark!B28) -> 3537.193572 | F28: =Output!$C$32 -> 100000
B29: 26 | C29: =C28+(Output!$C$25+Output!$C$26+Output!$C$27)*(((1+Output!$C$20)^Beregningsark!B29)/(1+Output!$C$21)^Beregningsark!B29) -> 133278.68 | D29: =D28+(Output!$C$25+Output!$C$26+Output!$C$27)*(((1+Output!$C$20)^Beregningsark!B29)/(1+Output!$C$21)^Beregningsark!B29) -> 33278.68003 | E29: =(Output!$C$25+Output!$C$26+Output!$C$27)*(((1+Output!$C$20)^Beregningsark!B29)/(1+Output!$C$21)^Beregningsark!B29) -> 3432.438223 | F29: =Output!$C$32 -> 100000
B30: 27 | C30: =C29+(Output!$C$25+Output!$C$26+Output!$C$27)*(((1+Output!$C$20)^Beregningsark!B30)/(1+Output!$C$21)^Beregningsark!B30) -> 136609.4653 | D30: =D29+(Output!$C$25+Output!$C$26+Output!$C$27)*(((1+Output!$C$20)^Beregningsark!B30)/(1+Output!$C$21)^Beregningsark!B30) -> 36609.46527 | E30: =(Output!$C$25+Output!$C$26+Output!$C$27)*(((1+Output!$C$20)^Beregningsark!B30)/(1+Output!$C$21)^Beregningsark!B30) -> 3330.785245 | F30: =Output!$C$32 -> 100000
B31: 28 | C31: =C30+(Output!$C$25+Output!$C$26+Output!$C$27)*(((1+Output!$C$20)^Beregningsark!B31)/(1+Output!$C$21)^Beregningsark!B31) -> 139841.608 | D31: =D30+(Output!$C$25+Output!$C$26+Output!$C$27)*(((1+Output!$C$20)^Beregningsark!B31)/(1+Output!$C$21)^Beregningsark!B31) -> 39841.60803 | E31: =(Output!$C$25+Output!$C$26+Output!$C$27)*(((1+Output!$C$20)^Beregningsark!B31)/(1+Output!$C$21)^Beregningsark!B31) -> 3232.142759 | F31: =Output!$C$32 -> 100000
B32: 29 | C32: =C31+(Output!$C$25+Output!$C$26+Output!$C$27)*(((1+Output!$C$20)^Beregningsark!B32)/(1+Output!$C$21)^Beregningsark!B32) -> 142978.0296 | D32: =D31+(Output!$C$25+Output!$C$26+Output!$C$27)*(((1+Output!$C$20)^Beregningsark!B32)/(1+Output!$C$21)^Beregningsark!B32) -> 42978.02964 | E32: =(Output!$C$25+Output!$C$26+Output!$C$27)*(((1+Output!$C$20)^Beregningsark!B32)/(1+Output!$C$21)^Beregningsark!B32) -> 3136.421608 | F32: =Output!$C$32 -> 100000
B33: 30 | C33: =C32+(Output!$C$25+Output!$C$26+Output!$C$27)*(((1+Output!$C$20)^Beregningsark!B33)/(1+Output!$C$21)^Beregningsark!B33) -> 146021.5649 | D33: =D32+(Output!$C$25+Output!$C$26+Output!$C$27)*(((1+Output!$C$20)^Beregningsark!B33)/(1+Output!$C$21)^Beregningsark!B33) -> 46021.56492 | E33: =(Output!$C$25+Output!$C$26+Output!$C$27)*(((1+Output!$C$20)^Beregningsark!B33)/(1+Output!$C$21)^Beregningsark!B33) -> 3043.535276 | F33: =Output!$C$32 -> 100000
B34: 31 | C34: =C33+(Output!$C$25+Output!$C$26+Output!$C$27)*(((1+Output!$C$20)^Beregningsark!B34)/(1+Output!$C$21)^Beregningsark!B34) -> 148974.9647 | D34: =D33+(Output!$C$25+Output!$C$26+Output!$C$27)*(((1+Output!$C$20)^Beregningsark!B34)/(1+Output!$C$21)^Beregningsark!B34) -> 48974.96473 | E34: =(Output!$C$25+Output!$C$26+Output!$C$27)*(((1+Output!$C$20)^Beregningsark!B34)/(1+Output!$C$21)^Beregningsark!B34) -> 2953.399808 | F34: =Output!$C$32 -> 100000
B35: 32 | C35: =C34+(Output!$C$25+Output!$C$26+Output!$C$27)*(((1+Output!$C$20)^Beregningsark!B35)/(1+Output!$C$21)^Beregningsark!B35) -> 151840.8985 | D35: =D34+(Output!$C$25+Output!$C$26+Output!$C$27)*(((1+Output!$C$20)^Beregningsark!B35)/(1+Output!$C$21)^Beregningsark!B35) -> 51840.89846 | E35: =(Output!$C$25+Output!$C$26+Output!$C$27)*(((1+Output!$C$20)^Beregningsark!B35)/(1+Output!$C$21)^Beregningsark!B35) -> 2865.933737 | F35: =Output!$C$32 -> 100000
B36: 33 | C36: =C35+(Output!$C$25+Output!$C$26+Output!$C$27)*(((1+Output!$C$20)^Beregningsark!B36)/(1+Output!$C$21)^Beregningsark!B36) -> 154621.9565 | D36: =D35+(Output!$C$25+Output!$C$26+Output!$C$27)*(((1+Output!$C$20)^Beregningsark!B36)/(1+Output!$C$21)^Beregningsark!B36) -> 54621.95647 | E36: =(Output!$C$25+Output!$C$26+Output!$C$27)*(((1+Output!$C$20)^Beregningsark!B36)/(1+Output!$C$21)^Beregningsark!B36) -> 2781.058007 | F36: =Output!$C$32 -> 100000
B37: 34 | C37: =C36+(Output!$C$25+Output!$C$26+Output!$C$27)*(((1+Output!$C$20)^Beregningsark!B37)/(1+Output!$C$21)^Beregningsark!B37) -> 157320.6524 | D37: =D36+(Output!$C$25+Output!$C$26+Output!$C$27)*(((1+Output!$C$20)^Beregningsark!B37)/(1+Output!$C$21)^Beregningsark!B37) -> 57320.65237 | E37: =(Output!$C$25+Output!$C$26+Output!$C$27)*(((1+Output!$C$20)^Beregningsark!B37)/(1+Output!$C$21)^Beregningsark!B37) -> 2698.695905 | F37: =Output!$C$32 -> 100000
B38: 35 | C38: =C37+(Output!$C$25+Output!$C$26+Output!$C$27)*(((1+Output!$C$20)^Beregningsark!B38)/(1+Output!$C$21)^Beregningsark!B38) -> 159939.4254 | D38: =D37+(Output!$C$25+Output!$C$26+Output!$C$27)*(((1+Output!$C$20)^Beregningsark!B38)/(1+Output!$C$21)^Beregningsark!B38) -> 59939.42536 | E38: =(Output!$C$25+Output!$C$26+Output!$C$27)*(((1+Output!$C$20)^Beregningsark!B38)/(1+Output!$C$21)^Beregningsark!B38) -> 2618.772987 | F38: =Output!$C$32 -> 100000
B39: 36 | C39: =C38+(Output!$C$25+Output!$C$26+Output!$C$27)*(((1+Output!$C$20)^Beregningsark!B39)/(1+Output!$C$21)^Beregningsark!B39) -> 162480.6424 | D39: =D38+(Output!$C$25+Output!$C$26+Output!$C$27)*(((1+Output!$C$20)^Beregningsark!B39)/(1+Output!$C$21)^Beregningsark!B39) -> 62480.64238 | E39: =(Output!$C$25+Output!$C$26+Output!$C$27)*(((1+Output!$C$20)^Beregningsark!B39)/(1+Output!$C$21)^Beregningsark!B39) -> 2541.217018 | F39: =Output!$C$32 -> 100000
B40: 37 | C40: =C39+(Output!$C$25+Output!$C$26+Output!$C$27)*(((1+Output!$C$20)^Beregningsark!B40)/(1+Output!$C$22)^Beregningsark!B40) -> 166006.3143 | D40: =D39+(Output!$C$25+Output!$C$26+Output!$C$27)*(((1+Output!$C$20)^Beregningsark!B40)/(1+Output!$C$22)^Beregningsark!B40) -> 66006.31431 | E40: =(Output!$C$25+Output!$C$26+Output!$C$27)*(((1+Output!$C$20)^Beregningsark!B40)/(1+Output!$C$22)^Beregningsark!B40) -> 3525.671927 | F40: =Output!$C$32 -> 100000
B41: 38 | C41: =C40+(Output!$C$25+Output!$C$26+Output!$C$27)*(((1+Output!$C$20)^Beregningsark!B41)/(1+Output!$C$22)^Beregningsark!B41) -> 169460.7882 | D41: =D40+(Output!$C$25+Output!$C$26+Output!$C$27)*(((1+Output!$C$20)^Beregningsark!B41)/(1+Output!$C$22)^Beregningsark!B41) -> 69460.7882 | E41: =(Output!$C$25+Output!$C$26+Output!$C$27)*(((1+Output!$C$20)^Beregningsark!B41)/(1+Output!$C$22)^Beregningsark!B41) -> 3454.473892 | F41: =Output!$C$32 -> 100000
B42: 39 | C42: =C41+(Output!$C$25+Output!$C$26+Output!$C$27)*(((1+Output!$C$20)^Beregningsark!B42)/(1+Output!$C$22)^Beregningsark!B42) -> 172845.5018 | D42: =D41+(Output!$C$25+Output!$C$26+Output!$C$27)*(((1+Output!$C$20)^Beregningsark!B42)/(1+Output!$C$22)^Beregningsark!B42) -> 72845.50184 | E42: =(Output!$C$25+Output!$C$26+Output!$C$27)*(((1+Output!$C$20)^Beregningsark!B42)/(1+Output!$C$22)^Beregningsark!B42) -> 3384.713642 | F42: =Output!$C$32 -> 100000
B43: 40 | C43: =C42+(Output!$C$25+Output!$C$26+Output!$C$27)*(((1+Output!$C$20)^Beregningsark!B43)/(1+Output!$C$22)^Beregningsark!B43) -> 176161.864 | D43: =D42+(Output!$C$25+Output!$C$26+Output!$C$27)*(((1+Output!$C$20)^Beregningsark!B43)/(1+Output!$C$22)^Beregningsark!B43) -> 76161.86398 | E43: =(Output!$C$25+Output!$C$26+Output!$C$27)*(((1+Output!$C$20)^Beregningsark!B43)/(1+Output!$C$22)^Beregningsark!B43) -> 3316.362144 | F43: =Output!$C$32 -> 100000
B44: 41 | C44: =C43+(Output!$C$25+Output!$C$26+Output!$C$27)*(((1+Output!$C$20)^Beregningsark!B44)/(1+Output!$C$22)^Beregningsark!B44) -> 179411.2549 | D44: =D43+(Output!$C$25+Output!$C$26+Output!$C$27)*(((1+Output!$C$20)^Beregningsark!B44)/(1+Output!$C$22)^Beregningsark!B44) -> 79411.25493 | E44: =(Output!$C$25+Output!$C$26+Output!$C$27)*(((1+Output!$C$20)^Beregningsark!B44)/(1+Output!$C$22)^Beregningsark!B44) -> 3249.390947 | F44: =Output!$C$32 -> 100000
B45: 42 | C45: =C44+(Output!$C$25+Output!$C$26+Output!$C$27)*(((1+Output!$C$20)^Beregningsark!B45)/(1+Output!$C$22)^Beregningsark!B45) -> 182595.0271 | D45: =D44+(Output!$C$25+Output!$C$26+Output!$C$27)*(((1+Output!$C$20)^Beregningsark!B45)/(1+Output!$C$22)^Beregningsark!B45) -> 82595.02711 | E45: =(Output!$C$25+Output!$C$26+Output!$C$27)*(((1+Output!$C$20)^Beregningsark!B45)/(1+Output!$C$22)^Beregningsark!B45) -> 3183.772178 | F45: =Output!$C$32 -> 100000
B46: 43 | C46: =C45+(Output!$C$25+Output!$C$26+Output!$C$27)*(((1+Output!$C$20)^Beregningsark!B46)/(1+Output!$C$22)^Beregningsark!B46) -> 185714.5056 | D46: =D45+(Output!$C$25+Output!$C$26+Output!$C$27)*(((1+Output!$C$20)^Beregningsark!B46)/(1+Output!$C$22)^Beregningsark!B46) -> 85714.50564 | E46: =(Output!$C$25+Output!$C$26+Output!$C$27)*(((1+Output!$C$20)^Beregningsark!B46)/(1+Output!$C$22)^Beregningsark!B46) -> 3119.478526 | F46: =Output!$C$32 -> 100000
B47: 44 | C47: =C46+(Output!$C$25+Output!$C$26+Output!$C$27)*(((1+Output!$C$20)^Beregningsark!B47)/(1+Output!$C$22)^Beregningsark!B47) -> 188770.9889 | D47: =D46+(Output!$C$25+Output!$C$26+Output!$C$27)*(((1+Output!$C$20)^Beregningsark!B47)/(1+Output!$C$22)^Beregningsark!B47) -> 88770.98887 | E47: =(Output!$C$25+Output!$C$26+Output!$C$27)*(((1+Output!$C$20)^Beregningsark!B47)/(1+Output!$C$22)^Beregningsark!B47) -> 3056.483232 | F47: =Output!$C$32 -> 100000
B48: 45 | C48: =C47+(Output!$C$25+Output!$C$26+Output!$C$27)*(((1+Output!$C$20)^Beregningsark!B48)/(1+Output!$C$22)^Beregningsark!B48) -> 191765.7489 | D48: =D47+(Output!$C$25+Output!$C$26+Output!$C$27)*(((1+Output!$C$20)^Beregningsark!B48)/(1+Output!$C$22)^Beregningsark!B48) -> 91765.74894 | E48: =(Output!$C$25+Output!$C$26+Output!$C$27)*(((1+Output!$C$20)^Beregningsark!B48)/(1+Output!$C$22)^Beregningsark!B48) -> 2994.760075 | F48: =Output!$C$32 -> 100000
B49: 46 | C49: =C48+(Output!$C$25+Output!$C$26+Output!$C$27)*(((1+Output!$C$20)^Beregningsark!B49)/(1+Output!$C$22)^Beregningsark!B49) -> 194700.0323 | D49: =D48+(Output!$C$25+Output!$C$26+Output!$C$27)*(((1+Output!$C$20)^Beregningsark!B49)/(1+Output!$C$22)^Beregningsark!B49) -> 94700.03231 | E49: =(Output!$C$25+Output!$C$26+Output!$C$27)*(((1+Output!$C$20)^Beregningsark!B49)/(1+Output!$C$22)^Beregningsark!B49) -> 2934.283367 | F49: =Output!$C$32 -> 100000
B50: 47 | C50: =C49+(Output!$C$25+Output!$C$26+Output!$C$27)*(((1+Output!$C$20)^Beregningsark!B50)/(1+Output!$C$22)^Beregningsark!B50) -> 197575.0602 | D50: =D49+(Output!$C$25+Output!$C$26+Output!$C$27)*(((1+Output!$C$20)^Beregningsark!B50)/(1+Output!$C$22)^Beregningsark!B50) -> 97575.06025 | E50: =(Output!$C$25+Output!$C$26+Output!$C$27)*(((1+Output!$C$20)^Beregningsark!B50)/(1+Output!$C$22)^Beregningsark!B50) -> 2875.027936 | F50: =Output!$C$32 -> 100000
B51: 48 | C51: =C50+(Output!$C$25+Output!$C$26+Output!$C$27)*(((1+Output!$C$20)^Beregningsark!B51)/(1+Output!$C$22)^Beregningsark!B51) -> 200392.0294 | D51: =D50+(Output!$C$25+Output!$C$26+Output!$C$27)*(((1+Output!$C$20)^Beregningsark!B51)/(1+Output!$C$22)^Beregningsark!B51) -> 100392.0294 | E51: =(Output!$C$25+Output!$C$26+Output!$C$27)*(((1+Output!$C$20)^Beregningsark!B51)/(1+Output!$C$22)^Beregningsark!B51) -> 2816.969119 | F51: =Output!$C$32 -> 100000
B52: 49 | C52: =C51+(Output!$C$25+Output!$C$26+Output!$C$27)*(((1+Output!$C$20)^Beregningsark!B52)/(1+Output!$C$22)^Beregningsark!B52) -> 203152.1121 | D52: =D51+(Output!$C$25+Output!$C$26+Output!$C$27)*(((1+Output!$C$20)^Beregningsark!B52)/(1+Output!$C$22)^Beregningsark!B52) -> 103152.1121 | E52: =(Output!$C$25+Output!$C$26+Output!$C$27)*(((1+Output!$C$20)^Beregningsark!B52)/(1+Output!$C$22)^Beregningsark!B52) -> 2760.082753 | F52: =Output!$C$32 -> 100000
B53: 50 | C53: =C52+(Output!$C$25+Output!$C$26+Output!$C$27)*(((1+Output!$C$20)^Beregningsark!B53)/(1+Output!$C$22)^Beregningsark!B53) -> 205856.4573 | D53: =D52+(Output!$C$25+Output!$C$26+Output!$C$27)*(((1+Output!$C$20)^Beregningsark!B53)/(1+Output!$C$22)^Beregningsark!B53) -> 105856.4573 | E53: =(Output!$C$25+Output!$C$26+Output!$C$27)*(((1+Output!$C$20)^Beregningsark!B53)/(1+Output!$C$22)^Beregningsark!B53) -> 2704.345159 | F53: =Output!$C$32 -> 100000
B54: 51 | C54: =C53+(Output!$C$25+Output!$C$26+Output!$C$27)*(((1+Output!$C$20)^Beregningsark!B54)/(1+Output!$C$22)^Beregningsark!B54) -> 208506.1904 | D54: =D53+(Output!$C$25+Output!$C$26+Output!$C$27)*(((1+Output!$C$20)^Beregningsark!B54)/(1+Output!$C$22)^Beregningsark!B54) -> 108506.1904 | E54: =(Output!$C$25+Output!$C$26+Output!$C$27)*(((1+Output!$C$20)^Beregningsark!B54)/(1+Output!$C$22)^Beregningsark!B54) -> 2649.733141 | F54: =Output!$C$32 -> 100000
B55: 52 | C55: =C54+(Output!$C$25+Output!$C$26+Output!$C$27)*(((1+Output!$C$20)^Beregningsark!B55)/(1+Output!$C$22)^Beregningsark!B55) -> 211102.4144 | D55: =D54+(Output!$C$25+Output!$C$26+Output!$C$27)*(((1+Output!$C$20)^Beregningsark!B55)/(1+Output!$C$22)^Beregningsark!B55) -> 111102.4144 | E55: =(Output!$C$25+Output!$C$26+Output!$C$27)*(((1+Output!$C$20)^Beregningsark!B55)/(1+Output!$C$22)^Beregningsark!B55) -> 2596.223966 | F55: =Output!$C$32 -> 100000
B56: 53 | C56: =C55+(Output!$C$25+Output!$C$26+Output!$C$27)*(((1+Output!$C$20)^Beregningsark!B56)/(1+Output!$C$22)^Beregningsark!B56) -> 213646.2098 | D56: =D55+(Output!$C$25+Output!$C$26+Output!$C$27)*(((1+Output!$C$20)^Beregningsark!B56)/(1+Output!$C$22)^Beregningsark!B56) -> 113646.2098 | E56: =(Output!$C$25+Output!$C$26+Output!$C$27)*(((1+Output!$C$20)^Beregningsark!B56)/(1+Output!$C$22)^Beregningsark!B56) -> 2543.795366 | F56: =Output!$C$32 -> 100000
B57: 54 | C57: =C56+(Output!$C$25+Output!$C$26+Output!$C$27)*(((1+Output!$C$20)^Beregningsark!B57)/(1+Output!$C$22)^Beregningsark!B57) -> 216138.6353 | D57: =D56+(Output!$C$25+Output!$C$26+Output!$C$27)*(((1+Output!$C$20)^Beregningsark!B57)/(1+Output!$C$22)^Beregningsark!B57) -> 116138.6353 | E57: =(Output!$C$25+Output!$C$26+Output!$C$27)*(((1+Output!$C$20)^Beregningsark!B57)/(1+Output!$C$22)^Beregningsark!B57) -> 2492.425518 | F57: =Output!$C$32 -> 100000
B58: 55 | C58: =C57+(Output!$C$25+Output!$C$26+Output!$C$27)*(((1+Output!$C$20)^Beregningsark!B58)/(1+Output!$C$22)^Beregningsark!B58) -> 218580.7283 | D58: =D57+(Output!$C$25+Output!$C$26+Output!$C$27)*(((1+Output!$C$20)^Beregningsark!B58)/(1+Output!$C$22)^Beregningsark!B58) -> 118580.7283 | E58: =(Output!$C$25+Output!$C$26+Output!$C$27)*(((1+Output!$C$20)^Beregningsark!B58)/(1+Output!$C$22)^Beregningsark!B58) -> 2442.093041 | F58: =Output!$C$32 -> 100000
B59: 56 | C59: =C58+(Output!$C$25+Output!$C$26+Output!$C$27)*(((1+Output!$C$20)^Beregningsark!B59)/(1+Output!$C$22)^Beregningsark!B59) -> 220973.5053 | D59: =D58+(Output!$C$25+Output!$C$26+Output!$C$27)*(((1+Output!$C$20)^Beregningsark!B59)/(1+Output!$C$22)^Beregningsark!B59) -> 120973.5053 | E59: =(Output!$C$25+Output!$C$26+Output!$C$27)*(((1+Output!$C$20)^Beregningsark!B59)/(1+Output!$C$22)^Beregningsark!B59) -> 2392.776988 | F59: =Output!$C$32 -> 100000
B60: 57 | C60: =C59+(Output!$C$25+Output!$C$26+Output!$C$27)*(((1+Output!$C$20)^Beregningsark!B60)/(1+Output!$C$22)^Beregningsark!B60) -> 223317.9621 | D60: =D59+(Output!$C$25+Output!$C$26+Output!$C$27)*(((1+Output!$C$20)^Beregningsark!B60)/(1+Output!$C$22)^Beregningsark!B60) -> 123317.9621 | E60: =(Output!$C$25+Output!$C$26+Output!$C$27)*(((1+Output!$C$20)^Beregningsark!B60)/(1+Output!$C$22)^Beregningsark!B60) -> 2344.456831 | F60: =Output!$C$32 -> 100000
B61: 58 | C61: =C60+(Output!$C$25+Output!$C$26+Output!$C$27)*(((1+Output!$C$20)^Beregningsark!B61)/(1+Output!$C$22)^Beregningsark!B61) -> 225615.0746 | D61: =D60+(Output!$C$25+Output!$C$26+Output!$C$27)*(((1+Output!$C$20)^Beregningsark!B61)/(1+Output!$C$22)^Beregningsark!B61) -> 125615.0746 | E61: =(Output!$C$25+Output!$C$26+Output!$C$27)*(((1+Output!$C$20)^Beregningsark!B61)/(1+Output!$C$22)^Beregningsark!B61) -> 2297.11246 | F61: =Output!$C$32 -> 100000
B62: 59 | C62: =C61+(Output!$C$25+Output!$C$26+Output!$C$27)*(((1+Output!$C$20)^Beregningsark!B62)/(1+Output!$C$22)^Beregningsark!B62) -> 227865.7988 | D62: =D61+(Output!$C$25+Output!$C$26+Output!$C$27)*(((1+Output!$C$20)^Beregningsark!B62)/(1+Output!$C$22)^Beregningsark!B62) -> 127865.7988 | E62: =(Output!$C$25+Output!$C$26+Output!$C$27)*(((1+Output!$C$20)^Beregningsark!B62)/(1+Output!$C$22)^Beregningsark!B62) -> 2250.72417 | F62: =Output!$C$32 -> 100000
B63: 60 | C63: =C62+(Output!$C$25+Output!$C$26+Output!$C$27)*(((1+Output!$C$20)^Beregningsark!B63)/(1+Output!$C$22)^Beregningsark!B63) -> 230071.0714 | D63: =D62+(Output!$C$25+Output!$C$26+Output!$C$27)*(((1+Output!$C$20)^Beregningsark!B63)/(1+Output!$C$22)^Beregningsark!B63) -> 130071.0714 | E63: =(Output!$C$25+Output!$C$26+Output!$C$27)*(((1+Output!$C$20)^Beregningsark!B63)/(1+Output!$C$22)^Beregningsark!B63) -> 2205.272652 | F63: =Output!$C$32 -> 100000
B64: 61 | C64: =C63+(Output!$C$25+Output!$C$26+Output!$C$27)*(((1+Output!$C$20)^Beregningsark!B64)/(1+Output!$C$22)^Beregningsark!B64) -> 232231.8104 | D64: =D63+(Output!$C$25+Output!$C$26+Output!$C$27)*(((1+Output!$C$20)^Beregningsark!B64)/(1+Output!$C$22)^Beregningsark!B64) -> 132231.8104 | E64: =(Output!$C$25+Output!$C$26+Output!$C$27)*(((1+Output!$C$20)^Beregningsark!B64)/(1+Output!$C$22)^Beregningsark!B64) -> 2160.738991 | F64: =Output!$C$32 -> 100000
B65: 62 | C65: =C64+(Output!$C$25+Output!$C$26+Output!$C$27)*(((1+Output!$C$20)^Beregningsark!B65)/(1+Output!$C$22)^Beregningsark!B65) -> 234348.9151 | D65: =D64+(Output!$C$25+Output!$C$26+Output!$C$27)*(((1+Output!$C$20)^Beregningsark!B65)/(1+Output!$C$22)^Beregningsark!B65) -> 134348.9151 | E65: =(Output!$C$25+Output!$C$26+Output!$C$27)*(((1+Output!$C$20)^Beregningsark!B65)/(1+Output!$C$22)^Beregningsark!B65) -> 2117.10465 | F65: =Output!$C$32 -> 100000
B66: 63 | C66: =C65+(Output!$C$25+Output!$C$26+Output!$C$27)*(((1+Output!$C$20)^Beregningsark!B66)/(1+Output!$C$22)^Beregningsark!B66) -> 236423.2665 | D66: =D65+(Output!$C$25+Output!$C$26+Output!$C$27)*(((1+Output!$C$20)^Beregningsark!B66)/(1+Output!$C$22)^Beregningsark!B66) -> 136423.2665 | E66: =(Output!$C$25+Output!$C$26+Output!$C$27)*(((1+Output!$C$20)^Beregningsark!B66)/(1+Output!$C$22)^Beregningsark!B66) -> 2074.351469 | F66: =Output!$C$32 -> 100000
B67: 64 | C67: =C66+(Output!$C$25+Output!$C$26+Output!$C$27)*(((1+Output!$C$20)^Beregningsark!B67)/(1+Output!$C$22)^Beregningsark!B67) -> 238455.7282 | D67: =D66+(Output!$C$25+Output!$C$26+Output!$C$27)*(((1+Output!$C$20)^Beregningsark!B67)/(1+Output!$C$22)^Beregningsark!B67) -> 138455.7282 | E67: =(Output!$C$25+Output!$C$26+Output!$C$27)*(((1+Output!$C$20)^Beregningsark!B67)/(1+Output!$C$22)^Beregningsark!B67) -> 2032.461653 | F67: =Output!$C$32 -> 100000
B68: 65 | C68: =C67+(Output!$C$25+Output!$C$26+Output!$C$27)*(((1+Output!$C$20)^Beregningsark!B68)/(1+Output!$C$22)^Beregningsark!B68) -> 240447.1459 | D68: =D67+(Output!$C$25+Output!$C$26+Output!$C$27)*(((1+Output!$C$20)^Beregningsark!B68)/(1+Output!$C$22)^Beregningsark!B68) -> 140447.1459 | E68: =(Output!$C$25+Output!$C$26+Output!$C$27)*(((1+Output!$C$20)^Beregningsark!B68)/(1+Output!$C$22)^Beregningsark!B68) -> 1991.417767 | F68: =Output!$C$32 -> 100000
B69: 66 | C69: =C68+(Output!$C$25+Output!$C$26+Output!$C$27)*(((1+Output!$C$20)^Beregningsark!B69)/(1+Output!$C$22)^Beregningsark!B69) -> 242398.3487 | D69: =D68+(Output!$C$25+Output!$C$26+Output!$C$27)*(((1+Output!$C$20)^Beregningsark!B69)/(1+Output!$C$22)^Beregningsark!B69) -> 142398.3487 | E69: =(Output!$C$25+Output!$C$26+Output!$C$27)*(((1+Output!$C$20)^Beregningsark!B69)/(1+Output!$C$22)^Beregningsark!B69) -> 1951.202729 | F69: =Output!$C$32 -> 100000
B70: 67 | C70: =C69+(Output!$C$25+Output!$C$26+Output!$C$27)*(((1+Output!$C$20)^Beregningsark!B70)/(1+Output!$C$22)^Beregningsark!B70) -> 244310.1485 | D70: =D69+(Output!$C$25+Output!$C$26+Output!$C$27)*(((1+Output!$C$20)^Beregningsark!B70)/(1+Output!$C$22)^Beregningsark!B70) -> 144310.1485 | E70: =(Output!$C$25+Output!$C$26+Output!$C$27)*(((1+Output!$C$20)^Beregningsark!B70)/(1+Output!$C$22)^Beregningsark!B70) -> 1911.7998 | F70: =Output!$C$32 -> 100000
B71: 68 | C71: =C70+(Output!$C$25+Output!$C$26+Output!$C$27)*(((1+Output!$C$20)^Beregningsark!B71)/(1+Output!$C$22)^Beregningsark!B71) -> 246183.3411 | D71: =D70+(Output!$C$25+Output!$C$26+Output!$C$27)*(((1+Output!$C$20)^Beregningsark!B71)/(1+Output!$C$22)^Beregningsark!B71) -> 146183.3411 | E71: =(Output!$C$25+Output!$C$26+Output!$C$27)*(((1+Output!$C$20)^Beregningsark!B71)/(1+Output!$C$22)^Beregningsark!B71) -> 1873.192581 | F71: =Output!$C$32 -> 100000
B72: 69 | C72: =C71+(Output!$C$25+Output!$C$26+Output!$C$27)*(((1+Output!$C$20)^Beregningsark!B72)/(1+Output!$C$22)^Beregningsark!B72) -> 248018.7061 | D72: =D71+(Output!$C$25+Output!$C$26+Output!$C$27)*(((1+Output!$C$20)^Beregningsark!B72)/(1+Output!$C$22)^Beregningsark!B72) -> 148018.7061 | E72: =(Output!$C$25+Output!$C$26+Output!$C$27)*(((1+Output!$C$20)^Beregningsark!B72)/(1+Output!$C$22)^Beregningsark!B72) -> 1835.365002 | F72: =Output!$C$32 -> 100000
B73: 70 | C73: =C72+(Output!$C$25+Output!$C$26+Output!$C$27)*(((1+Output!$C$20)^Beregningsark!B73)/(1+Output!$C$22)^Beregningsark!B73) -> 249817.0074 | D73: =D72+(Output!$C$25+Output!$C$26+Output!$C$27)*(((1+Output!$C$20)^Beregningsark!B73)/(1+Output!$C$22)^Beregningsark!B73) -> 149817.0074 | E73: =(Output!$C$25+Output!$C$26+Output!$C$27)*(((1+Output!$C$20)^Beregningsark!B73)/(1+Output!$C$22)^Beregningsark!B73) -> 1798.301321 | F73: =Output!$C$32 -> 100000
B74: 71 | C74: =C73+(Output!$C$25+Output!$C$26+Output!$C$27)*(((1+Output!$C$20)^Beregningsark!B74)/(1+Output!$C$23)^Beregningsark!B74) -> 253339.3633 | D74: =D73+(Output!$C$25+Output!$C$26+Output!$C$27)*(((1+Output!$C$20)^Beregningsark!B74)/(1+Output!$C$23)^Beregningsark!B74) -> 153339.3633 | E74: =(Output!$C$25+Output!$C$26+Output!$C$27)*(((1+Output!$C$20)^Beregningsark!B74)/(1+Output!$C$23)^Beregningsark!B74) -> 3522.355934 | F74: =Output!$C$32 -> 100000
B75: 72 | C75: =C74+(Output!$C$25+Output!$C$26+Output!$C$27)*(((1+Output!$C$20)^Beregningsark!B75)/(1+Output!$C$23)^Beregningsark!B75) -> 256824.4237 | D75: =D74+(Output!$C$25+Output!$C$26+Output!$C$27)*(((1+Output!$C$20)^Beregningsark!B75)/(1+Output!$C$23)^Beregningsark!B75) -> 156824.4237 | E75: =(Output!$C$25+Output!$C$26+Output!$C$27)*(((1+Output!$C$20)^Beregningsark!B75)/(1+Output!$C$23)^Beregningsark!B75) -> 3485.060401 | F75: =Output!$C$32 -> 100000
B76: 73 | C76: =C75+(Output!$C$25+Output!$C$26+Output!$C$27)*(((1+Output!$C$20)^Beregningsark!B76)/(1+Output!$C$23)^Beregningsark!B76) -> 260272.5835 | D76: =D75+(Output!$C$25+Output!$C$26+Output!$C$27)*(((1+Output!$C$20)^Beregningsark!B76)/(1+Output!$C$23)^Beregningsark!B76) -> 160272.5835 | E76: =(Output!$C$25+Output!$C$26+Output!$C$27)*(((1+Output!$C$20)^Beregningsark!B76)/(1+Output!$C$23)^Beregningsark!B76) -> 3448.159761 | F76: =Output!$C$32 -> 100000
B77: 74 | C77: =C76+(Output!$C$25+Output!$C$26+Output!$C$27)*(((1+Output!$C$20)^Beregningsark!B77)/(1+Output!$C$23)^Beregningsark!B77) -> 263684.2333 | D77: =D76+(Output!$C$25+Output!$C$26+Output!$C$27)*(((1+Output!$C$20)^Beregningsark!B77)/(1+Output!$C$23)^Beregningsark!B77) -> 163684.2333 | E77: =(Output!$C$25+Output!$C$26+Output!$C$27)*(((1+Output!$C$20)^Beregningsark!B77)/(1+Output!$C$23)^Beregningsark!B77) -> 3411.649834 | F77: =Output!$C$32 -> 100000
B78: 75 | C78: =C77+(Output!$C$25+Output!$C$26+Output!$C$27)*(((1+Output!$C$20)^Beregningsark!B78)/(1+Output!$C$23)^Beregningsark!B78) -> 267059.7598 | D78: =D77+(Output!$C$25+Output!$C$26+Output!$C$27)*(((1+Output!$C$20)^Beregningsark!B78)/(1+Output!$C$23)^Beregningsark!B78) -> 167059.7598 | E78: =(Output!$C$25+Output!$C$26+Output!$C$27)*(((1+Output!$C$20)^Beregningsark!B78)/(1+Output!$C$23)^Beregningsark!B78) -> 3375.526483 | F78: =Output!$C$32 -> 100000
B79: 76 | C79: =C78+(Output!$C$25+Output!$C$26+Output!$C$27)*(((1+Output!$C$20)^Beregningsark!B79)/(1+Output!$C$23)^Beregningsark!B79) -> 270399.5454 | D79: =D78+(Output!$C$25+Output!$C$26+Output!$C$27)*(((1+Output!$C$20)^Beregningsark!B79)/(1+Output!$C$23)^Beregningsark!B79) -> 170399.5454 | E79: =(Output!$C$25+Output!$C$26+Output!$C$27)*(((1+Output!$C$20)^Beregningsark!B79)/(1+Output!$C$23)^Beregningsark!B79) -> 3339.785615 | F79: =Output!$C$32 -> 100000
B80: 77 | C80: =C79+(Output!$C$25+Output!$C$26+Output!$C$27)*(((1+Output!$C$20)^Beregningsark!B80)/(1+Output!$C$23)^Beregningsark!B80) -> 273703.9686 | D80: =D79+(Output!$C$25+Output!$C$26+Output!$C$27)*(((1+Output!$C$20)^Beregningsark!B80)/(1+Output!$C$23)^Beregningsark!B80) -> 173703.9686 | E80: =(Output!$C$25+Output!$C$26+Output!$C$27)*(((1+Output!$C$20)^Beregningsark!B80)/(1+Output!$C$23)^Beregningsark!B80) -> 3304.423179 | F80: =Output!$C$32 -> 100000
B81: 78 | C81: =C80+(Output!$C$25+Output!$C$26+Output!$C$27)*(((1+Output!$C$20)^Beregningsark!B81)/(1+Output!$C$23)^Beregningsark!B81) -> 276973.4037 | D81: =D80+(Output!$C$25+Output!$C$26+Output!$C$27)*(((1+Output!$C$20)^Beregningsark!B81)/(1+Output!$C$23)^Beregningsark!B81) -> 176973.4037 | E81: =(Output!$C$25+Output!$C$26+Output!$C$27)*(((1+Output!$C$20)^Beregningsark!B81)/(1+Output!$C$23)^Beregningsark!B81) -> 3269.435169 | F81: =Output!$C$32 -> 100000
B82: 79 | C82: =C81+(Output!$C$25+Output!$C$26+Output!$C$27)*(((1+Output!$C$20)^Beregningsark!B82)/(1+Output!$C$23)^Beregningsark!B82) -> 280208.2214 | D82: =D81+(Output!$C$25+Output!$C$26+Output!$C$27)*(((1+Output!$C$20)^Beregningsark!B82)/(1+Output!$C$23)^Beregningsark!B82) -> 180208.2214 | E82: =(Output!$C$25+Output!$C$26+Output!$C$27)*(((1+Output!$C$20)^Beregningsark!B82)/(1+Output!$C$23)^Beregningsark!B82) -> 3234.81762 | F82: =Output!$C$32 -> 100000
B83: 80 | C83: =C82+(Output!$C$25+Output!$C$26+Output!$C$27)*(((1+Output!$C$20)^Beregningsark!B83)/(1+Output!$C$23)^Beregningsark!B83) -> 283408.788 | D83: =D82+(Output!$C$25+Output!$C$26+Output!$C$27)*(((1+Output!$C$20)^Beregningsark!B83)/(1+Output!$C$23)^Beregningsark!B83) -> 183408.788 | E83: =(Output!$C$25+Output!$C$26+Output!$C$27)*(((1+Output!$C$20)^Beregningsark!B83)/(1+Output!$C$23)^Beregningsark!B83) -> 3200.56661 | F83: =Output!$C$32 -> 100000
B84: 81 | C84: =C83+(Output!$C$25+Output!$C$26+Output!$C$27)*(((1+Output!$C$20)^Beregningsark!B84)/(1+Output!$C$23)^Beregningsark!B84) -> 286575.4662 | D84: =D83+(Output!$C$25+Output!$C$26+Output!$C$27)*(((1+Output!$C$20)^Beregningsark!B84)/(1+Output!$C$23)^Beregningsark!B84) -> 186575.4662 | E84: =(Output!$C$25+Output!$C$26+Output!$C$27)*(((1+Output!$C$20)^Beregningsark!B84)/(1+Output!$C$23)^Beregningsark!B84) -> 3166.678257 | F84: =Output!$C$32 -> 100000
B85: 82 | C85: =C84+(Output!$C$25+Output!$C$26+Output!$C$27)*(((1+Output!$C$20)^Beregningsark!B85)/(1+Output!$C$23)^Beregningsark!B85) -> 289708.615 | D85: =D84+(Output!$C$25+Output!$C$26+Output!$C$27)*(((1+Output!$C$20)^Beregningsark!B85)/(1+Output!$C$23)^Beregningsark!B85) -> 189708.615 | E85: =(Output!$C$25+Output!$C$26+Output!$C$27)*(((1+Output!$C$20)^Beregningsark!B85)/(1+Output!$C$23)^Beregningsark!B85) -> 3133.148723 | F85: =Output!$C$32 -> 100000
B86: 83 | C86: =C85+(Output!$C$25+Output!$C$26+Output!$C$27)*(((1+Output!$C$20)^Beregningsark!B86)/(1+Output!$C$23)^Beregningsark!B86) -> 292808.5892 | D86: =D85+(Output!$C$25+Output!$C$26+Output!$C$27)*(((1+Output!$C$20)^Beregningsark!B86)/(1+Output!$C$23)^Beregningsark!B86) -> 192808.5892 | E86: =(Output!$C$25+Output!$C$26+Output!$C$27)*(((1+Output!$C$20)^Beregningsark!B86)/(1+Output!$C$23)^Beregningsark!B86) -> 3099.974207 | F86: =Output!$C$32 -> 100000
B87: 84 | C87: =C86+(Output!$C$25+Output!$C$26+Output!$C$27)*(((1+Output!$C$20)^Beregningsark!B87)/(1+Output!$C$23)^Beregningsark!B87) -> 295875.7401 | D87: =D86+(Output!$C$25+Output!$C$26+Output!$C$27)*(((1+Output!$C$20)^Beregningsark!B87)/(1+Output!$C$23)^Beregningsark!B87) -> 195875.7401 | E87: =(Output!$C$25+Output!$C$26+Output!$C$27)*(((1+Output!$C$20)^Beregningsark!B87)/(1+Output!$C$23)^Beregningsark!B87) -> 3067.150951 | F87: =Output!$C$32 -> 100000
B88: 85 | C88: =C87+(Output!$C$25+Output!$C$26+Output!$C$27)*(((1+Output!$C$20)^Beregningsark!B88)/(1+Output!$C$23)^Beregningsark!B88) -> 298910.4154 | D88: =D87+(Output!$C$25+Output!$C$26+Output!$C$27)*(((1+Output!$C$20)^Beregningsark!B88)/(1+Output!$C$23)^Beregningsark!B88) -> 198910.4154 | E88: =(Output!$C$25+Output!$C$26+Output!$C$27)*(((1+Output!$C$20)^Beregningsark!B88)/(1+Output!$C$23)^Beregningsark!B88) -> 3034.675235 | F88: =Output!$C$32 -> 100000
B89: 86 | C89: =C88+(Output!$C$25+Output!$C$26+Output!$C$27)*(((1+Output!$C$20)^Beregningsark!B89)/(1+Output!$C$23)^Beregningsark!B89) -> 301912.9587 | D89: =D88+(Output!$C$25+Output!$C$26+Output!$C$27)*(((1+Output!$C$20)^Beregningsark!B89)/(1+Output!$C$23)^Beregningsark!B89) -> 201912.9587 | E89: =(Output!$C$25+Output!$C$26+Output!$C$27)*(((1+Output!$C$20)^Beregningsark!B89)/(1+Output!$C$23)^Beregningsark!B89) -> 3002.543379 | F89: =Output!$C$32 -> 100000
B90: 87 | C90: =C89+(Output!$C$25+Output!$C$26+Output!$C$27)*(((1+Output!$C$20)^Beregningsark!B90)/(1+Output!$C$23)^Beregningsark!B90) -> 304883.7105 | D90: =D89+(Output!$C$25+Output!$C$26+Output!$C$27)*(((1+Output!$C$20)^Beregningsark!B90)/(1+Output!$C$23)^Beregningsark!B90) -> 204883.7105 | E90: =(Output!$C$25+Output!$C$26+Output!$C$27)*(((1+Output!$C$20)^Beregningsark!B90)/(1+Output!$C$23)^Beregningsark!B90) -> 2970.751743 | F90: =Output!$C$32 -> 100000
B91: 88 | C91: =C90+(Output!$C$25+Output!$C$26+Output!$C$27)*(((1+Output!$C$20)^Beregningsark!B91)/(1+Output!$C$23)^Beregningsark!B91) -> 307823.0072 | D91: =D90+(Output!$C$25+Output!$C$26+Output!$C$27)*(((1+Output!$C$20)^Beregningsark!B91)/(1+Output!$C$23)^Beregningsark!B91) -> 207823.0072 | E91: =(Output!$C$25+Output!$C$26+Output!$C$27)*(((1+Output!$C$20)^Beregningsark!B91)/(1+Output!$C$23)^Beregningsark!B91) -> 2939.296725 | F91: =Output!$C$32 -> 100000
B92: 89 | C92: =C91+(Output!$C$25+Output!$C$26+Output!$C$27)*(((1+Output!$C$20)^Beregningsark!B92)/(1+Output!$C$23)^Beregningsark!B92) -> 310731.182 | D92: =D91+(Output!$C$25+Output!$C$26+Output!$C$27)*(((1+Output!$C$20)^Beregningsark!B92)/(1+Output!$C$23)^Beregningsark!B92) -> 210731.182 | E92: =(Output!$C$25+Output!$C$26+Output!$C$27)*(((1+Output!$C$20)^Beregningsark!B92)/(1+Output!$C$23)^Beregningsark!B92) -> 2908.17476 | F92: =Output!$C$32 -> 100000
B93: 90 | C93: =C92+(Output!$C$25+Output!$C$26+Output!$C$27)*(((1+Output!$C$20)^Beregningsark!B93)/(1+Output!$C$23)^Beregningsark!B93) -> 313608.5643 | D93: =D92+(Output!$C$25+Output!$C$26+Output!$C$27)*(((1+Output!$C$20)^Beregningsark!B93)/(1+Output!$C$23)^Beregningsark!B93) -> 213608.5643 | E93: =(Output!$C$25+Output!$C$26+Output!$C$27)*(((1+Output!$C$20)^Beregningsark!B93)/(1+Output!$C$23)^Beregningsark!B93) -> 2877.382321 | F93: =Output!$C$32 -> 100000
B94: 91 | C94: =C93+(Output!$C$25+Output!$C$26+Output!$C$27)*(((1+Output!$C$20)^Beregningsark!B94)/(1+Output!$C$23)^Beregningsark!B94) -> 316455.4802 | D94: =D93+(Output!$C$25+Output!$C$26+Output!$C$27)*(((1+Output!$C$20)^Beregningsark!B94)/(1+Output!$C$23)^Beregningsark!B94) -> 216455.4802 | E94: =(Output!$C$25+Output!$C$26+Output!$C$27)*(((1+Output!$C$20)^Beregningsark!B94)/(1+Output!$C$23)^Beregningsark!B94) -> 2846.91592 | F94: =Output!$C$32 -> 100000
B95: 92 | C95: =C94+(Output!$C$25+Output!$C$26+Output!$C$27)*(((1+Output!$C$20)^Beregningsark!B95)/(1+Output!$C$23)^Beregningsark!B95) -> 319272.2523 | D95: =D94+(Output!$C$25+Output!$C$26+Output!$C$27)*(((1+Output!$C$20)^Beregningsark!B95)/(1+Output!$C$23)^Beregningsark!B95) -> 219272.2523 | E95: =(Output!$C$25+Output!$C$26+Output!$C$27)*(((1+Output!$C$20)^Beregningsark!B95)/(1+Output!$C$23)^Beregningsark!B95) -> 2816.772104 | F95: =Output!$C$32 -> 100000
B96: 93 | C96: =C95+(Output!$C$25+Output!$C$26+Output!$C$27)*(((1+Output!$C$20)^Beregningsark!B96)/(1+Output!$C$23)^Beregningsark!B96) -> 322059.1998 | D96: =D95+(Output!$C$25+Output!$C$26+Output!$C$27)*(((1+Output!$C$20)^Beregningsark!B96)/(1+Output!$C$23)^Beregningsark!B96) -> 222059.1998 | E96: =(Output!$C$25+Output!$C$26+Output!$C$27)*(((1+Output!$C$20)^Beregningsark!B96)/(1+Output!$C$23)^Beregningsark!B96) -> 2786.947459 | F96: =Output!$C$32 -> 100000
B97: 94 | C97: =C96+(Output!$C$25+Output!$C$26+Output!$C$27)*(((1+Output!$C$20)^Beregningsark!B97)/(1+Output!$C$23)^Beregningsark!B97) -> 324816.6384 | D97: =D96+(Output!$C$25+Output!$C$26+Output!$C$27)*(((1+Output!$C$20)^Beregningsark!B97)/(1+Output!$C$23)^Beregningsark!B97) -> 224816.6384 | E97: =(Output!$C$25+Output!$C$26+Output!$C$27)*(((1+Output!$C$20)^Beregningsark!B97)/(1+Output!$C$23)^Beregningsark!B97) -> 2757.438603 | F97: =Output!$C$32 -> 100000
B98: 95 | C98: =C97+(Output!$C$25+Output!$C$26+Output!$C$27)*(((1+Output!$C$20)^Beregningsark!B98)/(1+Output!$C$23)^Beregningsark!B98) -> 327544.8806 | D98: =D97+(Output!$C$25+Output!$C$26+Output!$C$27)*(((1+Output!$C$20)^Beregningsark!B98)/(1+Output!$C$23)^Beregningsark!B98) -> 227544.8806 | E98: =(Output!$C$25+Output!$C$26+Output!$C$27)*(((1+Output!$C$20)^Beregningsark!B98)/(1+Output!$C$23)^Beregningsark!B98) -> 2728.242194 | F98: =Output!$C$32 -> 100000
B99: 96 | C99: =C98+(Output!$C$25+Output!$C$26+Output!$C$27)*(((1+Output!$C$20)^Beregningsark!B99)/(1+Output!$C$23)^Beregningsark!B99) -> 330244.2355 | D99: =D98+(Output!$C$25+Output!$C$26+Output!$C$27)*(((1+Output!$C$20)^Beregningsark!B99)/(1+Output!$C$23)^Beregningsark!B99) -> 230244.2355 | E99: =(Output!$C$25+Output!$C$26+Output!$C$27)*(((1+Output!$C$20)^Beregningsark!B99)/(1+Output!$C$23)^Beregningsark!B99) -> 2699.354924 | F99: =Output!$C$32 -> 100000
B100: 97 | C100: =C99+(Output!$C$25+Output!$C$26+Output!$C$27)*(((1+Output!$C$20)^Beregningsark!B100)/(1+Output!$C$23)^Beregningsark!B100) -> 332915.009 | D100: =D99+(Output!$C$25+Output!$C$26+Output!$C$27)*(((1+Output!$C$20)^Beregningsark!B100)/(1+Output!$C$23)^Beregningsark!B100) -> 232915.009 | E100: =(Output!$C$25+Output!$C$26+Output!$C$27)*(((1+Output!$C$20)^Beregningsark!B100)/(1+Output!$C$23)^Beregningsark!B100) -> 2670.773519 | F100: =Output!$C$32 -> 100000
B101: 98 | C101: =C100+(Output!$C$25+Output!$C$26+Output!$C$27)*(((1+Output!$C$20)^Beregningsark!B101)/(1+Output!$C$23)^Beregningsark!B101) -> 335557.5037 | D101: =D100+(Output!$C$25+Output!$C$26+Output!$C$27)*(((1+Output!$C$20)^Beregningsark!B101)/(1+Output!$C$23)^Beregningsark!B101) -> 235557.5037 | E101: =(Output!$C$25+Output!$C$26+Output!$C$27)*(((1+Output!$C$20)^Beregningsark!B101)/(1+Output!$C$23)^Beregningsark!B101) -> 2642.494741 | F101: =Output!$C$32 -> 100000
B102: 99 | C102: =C101+(Output!$C$25+Output!$C$26+Output!$C$27)*(((1+Output!$C$20)^Beregningsark!B102)/(1+Output!$C$23)^Beregningsark!B102) -> 338172.0191 | D102: =D101+(Output!$C$25+Output!$C$26+Output!$C$27)*(((1+Output!$C$20)^Beregningsark!B102)/(1+Output!$C$23)^Beregningsark!B102) -> 238172.0191 | E102: =(Output!$C$25+Output!$C$26+Output!$C$27)*(((1+Output!$C$20)^Beregningsark!B102)/(1+Output!$C$23)^Beregningsark!B102) -> 2614.515384 | F102: =Output!$C$32 -> 100000
B103: 100 | C103: =C102+(Output!$C$25+Output!$C$26+Output!$C$27)*(((1+Output!$C$20)^Beregningsark!B103)/(1+Output!$C$23)^Beregningsark!B103) -> 340758.8514 | D103: =D102+(Output!$C$25+Output!$C$26+Output!$C$27)*(((1+Output!$C$20)^Beregningsark!B103)/(1+Output!$C$23)^Beregningsark!B103) -> 240758.8514 | E103: =(Output!$C$25+Output!$C$26+Output!$C$27)*(((1+Output!$C$20)^Beregningsark!B103)/(1+Output!$C$23)^Beregningsark!B103) -> 2586.83228 | F103: =Output!$C$32 -> 100000
B104: 101 | C104: =C103+(Output!$C$25+Output!$C$26+Output!$C$27)*(((1+Output!$C$20)^Beregningsark!B104)/(1+Output!$C$23)^Beregningsark!B104) -> 343318.2937 | D104: =D103+(Output!$C$25+Output!$C$26+Output!$C$27)*(((1+Output!$C$20)^Beregningsark!B104)/(1+Output!$C$23)^Beregningsark!B104) -> 243318.2937 | E104: =(Output!$C$25+Output!$C$26+Output!$C$27)*(((1+Output!$C$20)^Beregningsark!B104)/(1+Output!$C$23)^Beregningsark!B104) -> 2559.442292 | F104: =Output!$C$32 -> 100000
